fUSD/lending_fUSD_20260404
["ID","MTS","AMOUNT","RATE_DAILY","PERIOD"]
[419686737,1775284240242,-7917.68174216,0.00014289,2]
[419686738,1775284240252,-2714.84,0.00014384,2]
[419686739,1775284240261,-150.0,0.000144,2]
[419686740,1775284240270,-150.0,0.000144,2]
[419686741,1775284240279,-150.0,0.000144,2]
[419686742,1775284240288,-150.33770113,0.000144,2]
[419686743,1775284240298,-150.0,0.000144,2]
[419686744,1775284240307,-150.0,0.000144,2]
[419686745,1775284240316,-150.0,0.000144,2]
[419686746,1775284240325,-150.0,0.000144,2]
[419686747,1775284240334,-150.0,0.000144,2]
[419686748,1775284240344,-150.0,0.000144,2]
[419686749,1775284240353,-150.0,0.000144,2]
[419686750,1775284240362,-150.0,0.000144,2]
[419686751,1775284240372,-150.0,0.000144,2]
[419686752,1775284240381,-150.0,0.00014533,2]
[419686753,1775284240390,-194.98807049,0.00014545,2]
[419686754,1775284240399,-7653.64697535,0.00014545,2]
[419686755,1775284240409,-150.0,0.0001456,2]
[419686756,1775284240418,-150.0,0.00014578,2]
[419686757,1775284240428,-166.66,0.00014649,2]
[419686758,1775284240437,-823.0,0.00014651,2]
[419686759,1775284240446,-150.0,0.00014667,2]
[419686760,1775284240456,-150.0,0.00014667,2]
[419686761,1775284240465,-1357.0,0.00014698,2]
[419686762,1775284240474,-500.0,0.00014705,2]
[419686763,1775284240484,-150.0,0.0001472,2]
[419686764,1775284240493,-150.0,0.00014756,2]
[419686765,1775284240503,-1500.0,0.00014795,2]
[419686766,1775284240512,-829.77078849,0.00014795,2]
[419686767,1775284240521,-1500.0,0.00014795,2]
[419686768,1775284240531,-150.0,0.000148,2]
[419686769,1775284240540,-2000.0,0.00014813,2]
[419686770,1775284240550,-7917.68174216,0.00014819,2]
[419686771,1775284240560,-273.4775334,0.00014843,2]
[419686772,1775284240569,-564.44398739,0.00014851,2]
[419686773,1775284240579,-150.0,0.0001488,2]
[419686774,1775284240588,-194.761681,0.00014901,2]
[419686775,1775284240597,-150.0,0.00014933,2]
[419686776,1775284240606,-150.0,0.00014933,2]
[419686777,1775284240616,-150.0,0.00014933,2]
[419686778,1775284240625,-150.0,0.00014933,2]
[419686779,1775284240635,-150.0,0.00014933,2]
[419686780,1775284240644,-150.0,0.00014933,2]
[419686781,1775284240654,-150.0,0.00014933,2]
[419686782,1775284240663,-150.0,0.00014933,2]
[419686783,1775284240672,-166.66,0.00014958,2]
[419686784,1775284240681,-346.57213934,0.00014981,2]
[419686785,1775284240691,-160.0,0.00015,2]
[419686786,1775284240700,-150.0,0.0001504,2]
[419686787,1775284240710,-1232.8,0.00015045,2]
[419686788,1775284240720,-150.0,0.00015067,2]
[419686789,1775284240729,-267.31,0.00015068,2]
[419686790,1775284240739,-2714.84,0.00015068,2]
[419686791,1775284240748,-150.0,0.00015111,2]
[419686792,1775284240758,-150.0,0.000152,2]
[419686793,1775284240767,-150.0,0.000152,2]
[419686794,1775284240776,-150.0,0.000152,2]
[419686795,1775284240785,-150.0,0.000152,2]
[419686796,1775284240794,-150.0,0.000152,2]
[419686797,1775284240804,-10000.0,0.00015205,2]
[419686798,1775284240813,-2945.0,0.00015225,2]
[419686799,1775284240823,-2945.0,0.00015229,2]
[419686800,1775284240832,-166.66,0.00015266,2]
[419686801,1775284240843,-150.0,0.00015289,2]
[419686802,1775284240853,-2945.0,0.00015308,2]
[419686803,1775284240862,-150.0,0.00015333,2]
[419686804,1775284240872,-7917.68174216,0.0001535,2]
[419686805,1775284240881,-150.0,0.0001536,2]
[419686806,1775284240891,-2945.0,0.00015396,2]
[419686807,1775284240900,-2945.0,0.00015436,2]
[419686808,1775284240910,-150.0,0.00015467,2]
[419686809,1775284240919,-150.0,0.00015467,2]
[419686810,1775284240929,-150.0,0.00015467,2]
[419686811,1775284240938,-150.0,0.00015467,2]
[419686812,1775284240948,-150.0,0.00015467,2]
[419686813,1775284240957,-150.0,0.00015467,2]
[419686814,1775284240967,-150.0,0.00015467,2]
[419686815,1775284240976,-150.0,0.00015467,2]
[419686816,1775284240985,-328.0,0.00015479,2]
[419686817,1775284240996,-154.0,0.000155,2]
[419686818,1775284241006,-2945.0,0.00015503,2]
[419686819,1775284241015,-150.0,0.0001552,2]
[419686820,1775284241024,-582.82048308,0.00015571,2]
[419686821,1775284241034,-166.66,0.00015575,2]
[419686822,1775284241043,-155.14456622,0.00015585,2]
[419686823,1775284241052,-150.0,0.000156,2]
[419686824,1775284241061,-150.0,0.00015644,2]
[419686825,1775284241070,-150.0,0.0001568,2]
[419686827,1775284241079,-2945.0,0.0001572,2]
[419686829,1775284241089,-150.0,0.00015733,2]
[419686830,1775284241098,-150.0,0.00015733,2]
[419686831,1775284241107,-3322.03,0.00015751,2]
[419686832,1775284241117,-2714.84,0.00015753,2]
[419686833,1775284241126,-483.76,0.00015779,2]
[419686834,1775284241136,-483.76,0.00015779,2]
[419686835,1775284241145,-483.76,0.00015779,2]
[419686836,1775284241155,-483.76,0.00015779,2]
[419686837,1775284241163,-483.74,0.00015779,2]
[419686838,1775284241173,-150.0,0.00015822,2]
[419686839,1775284241182,-150.0,0.0001584,2]
[419686840,1775284241192,-2945.0,0.00015854,2]
[419686841,1775284241202,-150.0,0.00015867,2]
[419686842,1775284241211,-2945.0,0.00015876,2]
[419686843,1775284241220,-7917.68174216,0.0001588,2]
[419686844,1775284241230,-2945.0,0.00015882,2]
[419686845,1775284241239,-166.66,0.00015883,2]
[419686846,1775284241249,-500.0,0.0001589,2]
[419686847,1775284241258,-500.0,0.0001589,2]
[419686848,1775284241267,-500.0,0.0001589,2]
[419686849,1775284241276,-500.0,0.0001589,2]
[419686850,1775284241286,-500.0,0.0001589,2]
[419686851,1775284241295,-500.0,0.0001589,2]
[419686852,1775284241305,-157.0,0.000159,2]
[419686853,1775284241314,-2945.0,0.00015911,2]
[419686854,1775284241323,-2945.0,0.00015934,2]
[419686855,1775284241333,-500.0,0.00015973,2]
[419686856,1775284241342,-501.7767113,0.00015973,2]
[419686857,1775284241351,-500.0,0.00015973,2]
[419686858,1775284241361,-500.0,0.00015973,2]
[419686859,1775284241371,-501.09720442,0.00015973,2]
[419686860,1775284241382,-500.0,0.00015973,2]
[419686861,1775284241391,-502.58762782,0.00015973,2]
[419686862,1775284241401,-2945.0,0.00015973,2]
[419686863,1775284241410,-514.47518034,0.00015979,2]
[419686864,1775284241419,-500.0,0.00015979,2]
[419686865,1775284241428,-500.0,0.00015979,2]
[419686866,1775284241759,-500.0,0.00015979,2]
[419686867,1775284241770,-500.0,0.00015979,2]
[419686868,1775284241780,-500.0,0.00015979,2]
[419686869,1775284241790,-500.0,0.00015979,2]
[419686870,1775284241800,-3632.4799728,0.00015979,2]
[419686871,1775284241810,-500.0,0.00015979,2]
[419686872,1775284241819,-500.0,0.00015979,2]
[419686873,1775284241828,-503486.6592891,0.00015979,2]
[419686874,1775284241838,-151.0,0.0001598,2]
[419686875,1775284241847,-151.0,0.0001598,2]
[419686876,1775284241858,-151.0,0.0001598,2]
[419686877,1775284241868,-151.0,0.0001598,2]
[419686878,1775284241878,-8825.240694,0.0001598,2]
[419686879,1775284241888,-151.0,0.0001598,2]
[419686880,1775284241897,-151.0,0.0001598,2]
[419686881,1775284241906,-835.147594,0.0001598,2]
[419686882,1775284241916,-1139.27329,0.0001598,2]
[419686883,1775284241925,-835.147594,0.0001598,2]
[419686884,1775284241936,-1139.27329,0.0001598,2]
[419686885,1775284241946,-835.147594,0.0001598,2]
[419686886,1775284241956,-1139.27329,0.0001598,2]
[419686887,1775284241965,-835.147594,0.0001598,2]
[419686888,1775284241976,-1139.27329,0.0001598,2]
[419686889,1775284241986,-151.0,0.0001598,2]
[419686890,1775284241996,-151.0,0.0001598,2]
[419686891,1775284242007,-151.0,0.0001598,2]
[419686892,1775284242018,-151.0,0.0001598,2]
[419686893,1775284242027,-186.053973,0.0001598,2]
[419686894,1775284242037,-186.053973,0.0001598,2]
[419686895,1775284242047,-186.053973,0.0001598,2]
[419686896,1775284242056,-186.053973,0.0001598,2]
[419686897,1775284242066,-821.94428671,0.0001599,2]
[419686898,1775284242075,-151.0,0.00015997,2]
[419686899,1775284242084,-151.0,0.00015997,2]
[419686900,1775284242093,-151.0,0.00015997,2]
[419686901,1775284242102,-151.0,0.00015997,2]
[419686902,1775284242111,-500.0,0.00015998,2]
[419686903,1775284242121,-500.0,0.00015998,2]
[419686904,1775284242130,-500.0,0.00015998,2]
[419686905,1775284242139,-230.01375163,0.00015998,2]
[419686906,1775284242149,-666.0,0.00015999,2]
[419686907,1775284242158,-670.84839751,0.00015999,2]
[419686908,1775284242167,-500.0,0.00015999,2]
[419686909,1775284242176,-500.0,0.00015999,2]
[419686910,1775284242185,-500.0,0.00015999,2]
[419686911,1775284242195,-500.0,0.00015999,2]
[419686912,1775284242206,-500.0,0.00015999,2]
[419686913,1775284242215,-500.0,0.00015999,2]
[419686914,1775284242225,-500.0,0.00015999,2]
[419686915,1775284242234,-500.0,0.00015999,2]
[419686916,1775284242243,-500.0,0.00015999,2]
[419686917,1775284242253,-318.49586876,0.00015999,2]
[419686918,1775284242262,-500.0,0.00015999,2]
[419686919,1775284242271,-625.0,0.00015999,2]
[419686920,1775284242280,-500.0,0.00015999,2]
[419686921,1775284242289,-500.0,0.00015999,2]
[419686922,1775284242299,-500.0,0.00015999,2]
[419686923,1775284242308,-500.0,0.00015999,2]
[419686924,1775284242317,-500.0,0.00015999,2]
[419686925,1775284242327,-500.0,0.00015999,2]
[419686926,1775284242338,-500.0,0.00015999,2]
[419686927,1775284242347,-500.0,0.00015999,2]
[419686928,1775284242357,-500.0,0.00015999,2]
[419686929,1775284242367,-500.0,0.00015999,2]
[419686930,1775284242376,-500.0,0.00015999,2]
[419686931,1775284242386,-500.0,0.00015999,2]
[419686932,1775284242397,-500.0,0.00015999,2]
[419686933,1775284242408,-500.0,0.00015999,2]
[419686934,1775284242418,-500.0,0.00015999,2]
[419686935,1775284242428,-500.0,0.00015999,2]
[419686936,1775284242437,-500.0,0.00015999,2]
[419686937,1775284242446,-500.0,0.00015999,2]
[419686938,1775284242455,-500.0,0.00015999,2]
[419686939,1775284242465,-500.0,0.00015999,2]
[419686940,1775284242474,-500.0,0.00015999,2]
[419686941,1775284242484,-500.0,0.00015999,2]
[419686942,1775284242493,-500.0,0.00015999,2]
[419686943,1775284242503,-500.0,0.00015999,2]
[419686944,1775284242512,-500.0,0.00015999,2]
[419686945,1775284242522,-500.0,0.00015999,2]
[419686946,1775284242531,-500.0,0.00015999,2]
[419686947,1775284242540,-500.0,0.00015999,2]
[419686948,1775284242549,-500.0,0.00015999,2]
[419686949,1775284242558,-500.0,0.00015999,2]
[419686950,1775284242567,-500.0,0.00015999,2]
[419686951,1775284242578,-500.0,0.00015999,2]
[419686952,1775284242588,-500.0,0.00015999,2]
[419686953,1775284242597,-500.0,0.00015999,2]
[419686954,1775284242607,-500.0,0.00015999,2]
[419686955,1775284242616,-500.0,0.00015999,2]
[419686956,1775284242626,-500.0,0.00015999,2]
[419686957,1775284242635,-500.0,0.00015999,2]
[419686958,1775284242644,-500.0,0.00015999,2]
[419686959,1775284242654,-500.0,0.00015999,2]
[419686960,1775284242663,-500.0,0.00015999,2]
[419686961,1775284242672,-500.0,0.00015999,2]
[419686962,1775284242682,-500.0,0.00015999,2]
[419686963,1775284242691,-520.24272845,0.00015999,2]
[419686964,1775284242700,-156.6731617,0.00016,2]
[419686965,1775284242710,-152.61128617,0.00016,2]
[419686966,1775284242719,-153.32332907,0.00016,2]
[419686967,1775284242728,-151.90220774,0.00016,2]
[419686968,1775284242737,-152.90460209,0.00016,2]
[419686969,1775284242746,-154.4422212,0.00016,2]
[419686970,1775284242755,-256.52934676,0.00016,2]
[419686972,1775284242764,-151.30611776,0.00016,2]
[419686974,1775284242773,-287.70807985,0.00016,2]
[419686975,1775284242782,-153.65348451,0.00016,2]
[419686976,1775284242792,-207.04675365,0.00016,2]
[419686977,1775284242802,-153.45263565,0.00016,2]
[419686978,1775284242812,-2871253.80568466,0.00016,2]
[419686980,1775284242822,-200.0,0.00016,2]
[419686982,1775284242831,-151.0,0.00016,2]
[419686984,1775284242840,-200.0,0.00016,2]
[419686986,1775284242850,-151.0,0.00016,2]
[419686988,1775284242859,-151.0,0.00016,2]
[419686990,1775284242868,-252.976654,0.00016,2]
[419686992,1775284242877,-151.0,0.00016,2]
[419686994,1775284242886,-151.0,0.00016,2]
[419686995,1775284242895,-151.793802,0.00016,2]
[419686996,1775284242905,-151.0,0.00016,2]
[419686997,1775284242914,-151.0,0.00016,2]
[419686998,1775284242924,-151.0,0.00016,2]
[419686999,1775284242934,-151.0,0.00016,2]
[419687000,1775284242945,-835.147594,0.00016,2]
[419687001,1775284242954,-1139.27329,0.00016,2]
[419687002,1775284242965,-835.147594,0.00016,2]
[419687003,1775284242975,-1139.27329,0.00016,2]
[419687004,1775284242984,-835.147594,0.00016,2]
[419687005,1775284242994,-1139.27329,0.00016,2]
[419687006,1775284243004,-835.147594,0.00016,2]
[419687007,1775284243013,-1139.27329,0.00016,2]
[419687008,1775284243023,-151.0,0.00016,2]
[419687009,1775284243033,-151.0,0.00016,2]
[419687010,1775284243043,-151.0,0.00016,2]
[419687011,1775284243053,-153.953842,0.00016,2]
[419687012,1775284243062,-554061.65884909,0.00016,6]
[419687013,1775284243104,-25930.86501653,0.00016,6]
[419687014,1775284243115,-1560.03939875,0.00016,6]
[419687015,1775284243135,-1155.05164175,0.00016,6]
[419687017,1775284243869,-52.39734176,0.00016,6]
[419687018,1775284244835,-215.40969197,0.00015601,2]
[419687019,1775284244844,-504.18821122,0.00015701,2]
[419687020,1775284244865,-1337.71693204,0.00015701,2]
[419687023,1775284246123,-84.96031373,0.00015701,2]
[419687024,1775284246244,-73.13454301,0.00015701,2]
[419687025,1775284246253,-821.78283855,0.00015801,2]
[419687027,1775284246783,-493.02592623,0.00015801,2]
[419687030,1775284282506,23147.10525614,0.00016101,120]
[419687034,1775285245120,-2453.08278131,0.00010096,2]
[419687035,1775285258534,-846.37058767,0.0001,2]
[419687036,1775285258564,-2546.91721869,0.00010096,2]
[419687037,1775285258591,-300.0,0.00010191,2]
[419687038,1775285258620,-5000.0,0.00010192,2]
[419687039,1775285271645,-250.0,0.00010385,2]
[419687040,1775285271671,-1150.71219364,0.00010385,2]
[419687041,1775285352505,-200.0,0.00010188,2]
[419687042,1775285352532,-1600.0,0.00010264,2]
[419687043,1775285352558,-250.0,0.00010393,2]
[419687044,1775285352584,-3050.0,0.00010402,2]
[419687045,1775285356124,-1950.0,0.00010402,2]
[419687046,1775285356147,-250.0,0.00010489,2]
[419687047,1775285356167,-290.0,0.00010496,2]
[419687048,1775285356189,-300.0,0.00010496,2]
[419687049,1775285356209,-11786.18,0.00010497,2]
[419687050,1775285356231,-500.0,0.00010769,2]
[419687051,1775285356252,-150.0,0.00010848,2]
[419687052,1775285356272,-9891.43295167,0.00010849,2]
[419687053,1775285366844,-27910.24704833,0.00010849,2]
[419687054,1775285366868,-5355.89520312,0.00010878,2]
[419687055,1775285368102,-26032.73903689,0.00010878,2]
[419687061,1775285432554,-716.51117773,0.00010859,2]
[419687062,1775285432566,-933.29910589,0.00010859,2]
[419687065,1775285432606,-2518.78506904,0.00010859,2]
[419687067,1775285432699,-1525.18263259,0.00010859,2]
[419687069,1775285432724,-3310.9693705,0.00010859,2]
[419687070,1775285432735,-547.96285781,0.00010868,2]
[419687071,1775285432745,-1200.0,0.00010877,2]
[419687072,1775285432755,-529.89075286,0.00010877,2]
[419687073,1775285432764,-311.46643852,0.00010877,2]
[419687074,1775285432775,-500.0,0.00010877,2]
[419687075,1775285432784,-500.0,0.00010877,2]
[419687076,1775285432794,-500.0,0.00010877,2]
[419687077,1775285432803,-500.0,0.00010877,2]
[419687078,1775285432814,-500.0,0.00010877,2]
[419687079,1775285432825,-597.94679537,0.00010877,2]
[419687080,1775285432835,-500.0,0.00010877,2]
[419687081,1775285432844,-500.0,0.00010877,2]
[419687082,1775285432854,-500.0,0.00010877,2]
[419687083,1775285432863,-500.0,0.00010877,2]
[419687084,1775285432873,-500.0,0.00010877,2]
[419687085,1775285432883,-500.0,0.00010877,2]
[419687086,1775285432894,-250.0,0.00010878,2]
[419687087,1775285432903,-1793857.19096514,0.00010878,2]
[419687088,1775285432916,-127626.17085362,0.00010878,2]
[419687089,1775285432927,-67885.41714524,0.00010878,2]
[419687090,1775285432938,-257845.02700088,0.00010878,2]
[419687091,1775285432951,-1254.41808677,0.00010878,2]
[419687093,1775285438417,-500.0,0.00010877,2]
[419687094,1775285438428,-182.82419012,0.00010877,2]
[419687095,1775285438437,-500.0,0.00010877,2]
[419687096,1775285438446,-226.49961283,0.00010877,2]
[419687097,1775285438458,-273.50038717,0.00010877,2]
[419687098,1775285438467,-226.49961283,0.00010877,2]
[419687099,1775285438479,-273.50038717,0.00010877,2]
[419687100,1775285438489,-500.0,0.00010877,2]
[419687101,1775285438499,-500.0,0.00010877,2]
[419687102,1775285438508,-500.0,0.00010877,2]
[419687103,1775285438517,-274.07741074,0.00010877,2]
[419687104,1775285438527,-500.0,0.00010877,2]
[419687105,1775285438539,-500.0,0.00010877,2]
[419687106,1775285438549,-500.0,0.00010877,2]
[419687107,1775285438559,-500.0,0.00010877,2]
[419687108,1775285438570,-500.0,0.00010877,2]
[419687109,1775285438581,-500.0,0.00010877,2]
[419687110,1775285438591,-500.0,0.00010877,2]
[419687111,1775285438602,-500.0,0.00010877,2]
[419687112,1775285438612,-220143.14170834,0.00010878,2]
[419687113,1775285438622,-723796.9495,0.00010878,2]
[419687114,1775285438633,-150.0,0.00010959,2]
[419687115,1775285438643,-180.79960769,0.00010959,2]
[419687116,1775285438654,-373.635,0.00010978,2]
[419687117,1775285438665,-6798.692,0.00010978,2]
[419687118,1775285438674,-499.5604141,0.00010978,2]
[419687119,1775285438684,-2500.0,0.00010978,2]
[419687120,1775285438693,-4307.08457462,0.00010978,2]
[419687121,1775285438704,-150.99,0.00010978,2]
[419687122,1775285438714,-299.99,0.00010978,2]
[419687123,1775285438723,-150.99,0.00010978,2]
[419687124,1775285438733,-2982.55,0.00010978,2]
[419687125,1775285438743,-9999.99,0.00010978,2]
[419687126,1775285438754,-3796.16,0.00010978,2]
[419687127,1775285438763,-5000.0,0.00011,2]
[419687128,1775285438774,-5000.0,0.00011,2]
[419687129,1775285438783,-14041.0,0.00011041,2]
[419687130,1775285438792,-1500.0,0.00011043,2]
[419687131,1775285438801,-1852.42,0.00011052,2]
[419687132,1775285438810,-500.0,0.00011071,2]
[419687133,1775285438819,-500.0,0.00011071,2]
[419687134,1775285438828,-500.0,0.00011071,2]
[419687135,1775285438838,-500.0,0.00011071,2]
[419687136,1775285438847,-500.0,0.00011071,2]
[419687137,1775285438857,-500.0,0.00011071,2]
[419687138,1775285438866,-500.0,0.00011071,2]
[419687139,1775285438875,-151.0,0.00011071,2]
[419687140,1775285438885,-500.0,0.00011071,2]
[419687141,1775285438894,-151.0,0.00011071,2]
[419687142,1775285438904,-500.0,0.00011071,2]
[419687143,1775285438914,-151.0,0.00011071,2]
[419687144,1775285438923,-500.0,0.00011071,2]
[419687145,1775285438933,-151.0,0.00011071,2]
[419687146,1775285438942,-500.0,0.00011071,2]
[419687147,1775285438952,-293.70663652,0.00011071,2]
[419687148,1775285438961,-151.0,0.00011071,2]
[419687149,1775285438971,-151.0,0.00011071,2]
[419687150,1775285438981,-151.0,0.00011071,2]
[419687151,1775285438991,-151.0,0.00011071,2]
[419687152,1775285439000,-151.0,0.00011071,2]
[419687153,1775285439010,-151.0,0.00011071,2]
[419687154,1775285439020,-151.0,0.00011071,2]
[419687155,1775285439029,-151.0,0.00011071,2]
[419687156,1775285439039,-151.0,0.00011071,2]
[419687157,1775285439049,-151.0,0.00011071,2]
[419687158,1775285439061,-151.0,0.00011071,2]
[419687159,1775285439070,-500.0,0.00011073,2]
[419687160,1775285439080,-151.0,0.00011075,2]
[419687161,1775285439089,-151.0,0.00011075,2]
[419687162,1775285439098,-151.0,0.00011075,2]
[419687163,1775285439107,-155.553,0.00011077,2]
[419687164,1775285439117,-1000.0,0.00011078,2]
[419687165,1775285439126,-19968.63503618,0.00011099,2]
[419687166,1775285439135,-935.0,0.00011363,2]
[419687167,1775285439145,-220.79,0.00011384,2]
[419687168,1775285439154,-5139.63528494,0.00011423,2]
[419687169,1775285439163,-600.0,0.00011423,2]
[419687170,1775285439173,-600.0,0.00011423,2]
[419687171,1775285439183,-600.0,0.00011423,2]
[419687172,1775285439192,-600.0,0.00011423,2]
[419687173,1775285439202,-250.0,0.00011423,2]
[419687174,1775285439211,-813.0,0.00011464,2]
[419687175,1775285439220,-1600.0,0.00011547,2]
[419687176,1775285439230,-1837.51,0.00011729,2]
[419687177,1775285439239,-5533.0,0.000119,5]
[419687178,1775285439249,-250.0,0.00011965,2]
[419687179,1775285439259,-220.79,0.00012016,2]
[419687180,1775285439268,-326.21988924,0.00012085,2]
[419687181,1775285439279,-155.0,0.00012185,2]
[419687182,1775285439289,-220.79,0.00012649,2]
[419687183,1775285439299,-1600.0,0.0001283,2]
[419687184,1775285439310,-223.3733168,0.00012987,2]
[419687185,1775285439321,-286.79011549,0.00012987,2]
[419687186,1775285439330,-177.23259319,0.00012987,2]
[419687187,1775285439340,-265.75024447,0.00012987,2]
[419687188,1775285439349,-166.95884188,0.00012987,2]
[419687189,1775285439358,-177.07809425,0.00012987,2]
[419687190,1775285439368,-247.16930945,0.00012987,2]
[419687191,1775285439378,-188.17285414,0.00012987,2]
[419687192,1775285439388,-233.6685058,0.00012987,2]
[419687193,1775285439397,-250.0,0.00013,2]
[419687194,1775285439407,-509.0,0.00013111,2]
[419687195,1775285439416,-240.24,0.0001313,2]
[419687196,1775285439424,-577.24269808,0.0001326,2]
[419687197,1775285439434,-354.26789573,0.0001326,2]
[419687198,1775285439443,-454.02488911,0.0001326,2]
[419687199,1775285439452,-319.88323886,0.0001326,2]
[419687200,1775285439461,-220.79,0.00013281,2]
[419687201,1775285439471,-155.0,0.00013292,2]
[419687202,1775285439480,-1253.36,0.0001336,2]
[419687203,1775285439490,-387.54543302,0.00013528,2]
[419687204,1775285439499,-19968.63503615,0.00013628,2]
[419687205,1775285439508,-500.0,0.00013698,2]
[419687206,1775285439730,-500.0,0.00013698,2]
[419687207,1775285439744,-625.0,0.00013698,2]
[419687208,1775285439754,-230.01375163,0.00013698,2]
[419687209,1775285439763,-500.0,0.00013698,2]
[419687210,1775285439773,-366.30763163,0.00013698,2]
[419687211,1775285439783,-500.0,0.00013698,2]
[419687212,1775285439792,-500.0,0.00013698,2]
[419687213,1775285439801,-500.0,0.00013698,2]
[419687214,1775285439813,-500.0,0.00013698,2]
[419687215,1775285439823,-500.0,0.00013698,2]
[419687216,1775285439832,-500.0,0.00013698,2]
[419687217,1775285439842,-500.0,0.00013698,2]
[419687218,1775285439852,-500.0,0.00013698,2]
[419687219,1775285439864,-500.0,0.00013698,2]
[419687220,1775285439875,-500.0,0.00013698,2]
[419687221,1775285439885,-318.49586876,0.00013698,2]
[419687222,1775285439894,-200.0,0.00013699,2]
[419687223,1775285439904,-500.0,0.00013699,2]
[419687224,1775285439913,-369.73243376,0.00013699,2]
[419687225,1775285439922,-236.52043578,0.0001372,2]
[419687226,1775285439931,-220.79,0.00013913,2]
[419687227,1775285439941,-465.861234,0.00014009,2]
[419687228,1775285439950,-1600.0,0.00014113,2]
[419687229,1775285439960,-220.79,0.00014546,2]
[419687230,1775285439969,-11786.18,0.00014696,2]
[419687231,1775285439978,-501.74115938,0.00014705,2]
[419687232,1775285439988,-232.31372017,0.000149,2]
[419687233,1775285439999,-300.0,0.00015,2]
[419687234,1775285440008,-220.79,0.00015178,2]
[419687235,1775285440018,-598.0,0.00015241,2]
[419687236,1775285440027,-155.14456622,0.00015272,2]
[419687237,1775285440036,-598.0,0.00015295,2]
[419687238,1775285440047,-598.0,0.00015324,2]
[419687239,1775285440056,-598.0,0.00015388,2]
[419687240,1775285440065,-1600.0,0.00015396,2]
[419687241,1775285440075,-499.56041407,0.00015433,2]
[419687242,1775285440085,-1000.0,0.00015719,2]
[419687243,1775285440094,-1000.0,0.00015719,2]
[419687244,1775285440103,-1000.0,0.00015719,2]
[419687245,1775285440113,-248.0,0.00015753,2]
[419687246,1775285440122,-598.0,0.00015786,2]
[419687247,1775285440131,-685.19123522,0.00015801,2]
[419687248,1775285440141,-220.79,0.00015811,2]
[419687249,1775285440150,-500.0,0.0001589,2]
[419687250,1775285440160,-500.0,0.0001589,2]
[419687251,1775285440169,-500.0,0.0001589,2]
[419687252,1775285440178,-500.0,0.0001589,2]
[419687253,1775285440188,-500.0,0.0001589,2]
[419687254,1775285440197,-500.0,0.0001589,2]
[419687255,1775285440206,-500.0,0.0001589,2]
[419687256,1775285440216,-500.0,0.0001589,2]
[419687257,1775285440226,-500.0,0.0001589,2]
[419687258,1775285440235,-500.0,0.0001589,2]
[419687259,1775285440244,-500.0,0.0001589,2]
[419687260,1775285440254,-500.0,0.0001589,2]
[419687261,1775285440263,-500.0,0.0001589,2]
[419687262,1775285440273,-500.0,0.0001589,2]
[419687263,1775285440284,-500.0,0.0001589,2]
[419687264,1775285440294,-500.0,0.0001589,2]
[419687265,1775285440305,-500.0,0.0001589,2]
[419687266,1775285440314,-500.0,0.0001589,2]
[419687267,1775285440324,-500.0,0.0001589,2]